bitfinex/quotes_SOLUSD_20250920
["timestamp","ask_amount","ask_price","bid_price","bid_amount"]
[1758354542346,0.1,239.84,239.82,13.59559401]
[1758354542555,0.76,239.84,239.82,13.59559401]
[1758354542768,0.76,239.84,239.82,17.76537362]
[1758354542971,0.1,239.84,239.81,13.59559401]
[1758354543267,0.66,239.83,239.81,16.40787242]
[1758354543971,0.66,239.83,239.81,13.59559401]
[1758354544263,0.1,239.84,239.81,13.59559401]
[1758354544564,0.1,239.84,239.81,14.28559401]
[1758354544964,0.1,239.84,239.81,18.45542587]
[1758354546563,0.1,239.84,239.82,0.69]
[1758354547252,0.1,239.84,239.82,4.85976648]
[1758354547870,0.1,239.84,239.82,4.16976648]
[1758354549661,0.1,239.84,239.81,13.59559401]
[1758354549863,0.76,239.84,239.81,13.59559401]
[1758354550566,0.76,239.84,239.81,17.76548312]
[1758354551062,0.1,239.84,239.81,18.45548312]
[1758354551366,0.1,239.84,239.82,0.69]
[1758354551669,0.1,239.84,239.83,17.76521415]
[1758354551869,2.91219695,239.84,239.83,18.45521415]
[1758354552468,0.1,239.84,239.83,18.45521415]
[1758354556863,0.1,239.84,239.83,17.76521415]
[1758354557060,0.1,239.84,239.83,18.45521415]
[1758354559556,0.1,239.84,239.83,17.76521415]
[1758354560777,0.1,239.84,239.83,13.59559401]
[1758354562662,0.76,239.84,239.8,12.79452359]
[1758354562975,3.47279135,239.83,239.81,13.59559401]
[1758354563176,0.66,239.83,239.8,13.59559401]
[1758354563381,0.66,239.83,239.8,14.28559401]
[1758354563572,4.26947322,239.84,239.8,14.28559401]
[1758354563773,2.81273403,239.83,239.8,14.28559401]
[1758354563967,0.66,239.83,239.8,13.59559401]
[1758354564571,0.66,239.83,239.8,14.28559401]
[1758354564870,1.34736714,239.84,239.8,18.45571793]
[1758354565071,2.81268859,239.83,239.8,18.45571793]
[1758354565263,2.00736714,239.84,239.8,18.45571793]
[1758354565465,2.81265636,239.83,239.8,18.45571793]
[1758354565664,2.00736714,239.84,239.8,18.45571793]
[1758354565865,2.81265672,239.83,239.8,18.45571793]
[1758354566080,2.00736714,239.84,239.8,18.45571793]
[1758354566266,2.81263342,239.83,239.8,18.45571793]
[1758354566464,2.00736714,239.84,239.8,18.45571793]
[1758354566667,2.81263758,239.83,239.8,18.45571793]
[1758354566868,1.34736714,239.84,239.8,13.59559401]
[1758354567165,0.67,239.82,239.8,13.59559401]
[1758354567366,2.01736714,239.84,239.8,14.29559401]
[1758354567564,2.01736714,239.84,239.8,13.59559401]
[1758354567767,2.01736714,239.84,239.8,14.29559401]
[1758354567969,0.67,239.83,239.8,13.59559401]
[1758354568278,1.34736714,239.84,239.8,13.59559401]
[1758354568480,1.34736714,239.84,239.8,14.29559401]
[1758354568687,0.67,239.83,239.78,4.87048111]
[1758354568980,5.51686006,239.84,237.35,55.73717461]
[1758354568981,1.24736714,239.8,239.73,0.7]
[1758354569165,1.24736714,239.78,239.74,13.59559401]
[1758354569363,4.72965038,239.78,239.74,13.59559401]
[1758354569565,1.91736714,239.78,239.71,17.86508693]
[1758354569860,1.91736714,239.78,239.74,0.7]
[1758354570071,4.72965038,239.78,239.74,0.7]
[1758354570273,1.91736714,239.78,239.74,0.7]
[1758354570779,0.67,239.77,239.74,13.59559401]
[1758354570987,6.08786749,239.78,239.74,14.29559401]
[1758354571372,6.08786749,239.78,239.74,13.59559401]
[1758354571884,0.67,239.77,239.74,13.59559401]
[1758354572269,1.24736714,239.76,239.71,4.26949292]
[1758354572477,0.67,239.75,239.71,14.29559401]
[1758354572688,1.24736714,239.76,239.72,0.7]
[1758354572997,1.91736714,239.76,239.72,0.7]
[1758354573199,12.596753,239.76,239.72,0.7]
[1758354575594,10.67938586,239.76,239.71,17.76721488]
[1758354575771,12.63024982,239.76,239.73,0.7]
[1758354575972,1.95086396,239.76,239.73,0.7]
[1758354576697,10.67938586,239.77,239.73,0.7]
[1758354576698,10.67938586,239.77,239.74,0.7]
[1758354576868,1.95086396,239.78,239.73,13.59559401]
[1758354577069,13.30024982,239.78,239.74,0.7]
[1758354577273,11.34938586,239.78,239.74,0.7]
[1758354577566,13.30024982,239.78,239.74,0.7]
[1758354578066,12.63024982,239.78,239.75,0.7]
[1758354578264,12.63024982,239.78,239.73,17.76684894]
[1758354578663,12.63024982,239.78,239.74,0.7]
[1758354578889,12.63024982,239.78,239.75,0.7]
[1758354579779,13.30024982,239.78,239.73,18.46684894]
[1758354579969,13.30024982,239.78,239.74,0.7]
[1758354580286,13.30024982,239.78,239.74,4.87118261]
[1758354580490,12.63024982,239.78,239.75,0.7]
[1758354580795,12.63024982,239.78,239.74,4.17118261]
[1758354580998,13.30024982,239.78,239.74,4.87118261]
[1758354583592,12.63024982,239.78,239.75,0.7]
[1758354583779,10.67938586,239.78,239.75,0.7]
[1758354584497,11.34938586,239.78,239.74,4.17118261]
[1758354584683,11.34938586,239.78,239.74,4.87118261]
[1758354586292,10.67938586,239.78,239.75,4.87097757]
[1758354587387,10.67938586,239.78,239.75,4.17097757]
[1758354587582,11.34938586,239.78,239.74,4.17116409]
[1758354587786,1.95086396,239.77,239.74,4.87116409]
[1758354587988,2.62086396,239.77,239.74,4.17116409]
[1758354588287,1.95086396,239.77,239.74,4.87116409]
[1758354589805,1.95086396,239.77,239.74,4.17116409]
[1758354590100,1.95086396,239.77,239.75,0.7]
[1758354590596,12.63024982,239.78,239.75,0.7]
[1758354591397,1.95086396,239.78,239.75,0.7]
[1758354593587,1.95086396,239.78,239.74,4.17116409]
[1758354593588,0.67,239.77,239.74,4.17116409]
[1758354594194,0.67,239.77,239.74,4.87116409]
[1758354594401,1.95086396,239.78,239.75,0.7]
[1758354595692,2.62086396,239.78,239.75,0.7]
[1758354596094,1.95086396,239.78,239.75,0.7]
[1758354596305,31.2,239.79,239.75,0.7]
[1758354596602,1.95086396,239.77,239.75,0.7]
[1758354596804,1.95086396,239.77,239.74,4.85116409]
[1758354597205,4.17000091,239.81,239.75,14.27559401]
[1758354597406,1.95086396,239.79,239.76,0.68]
[1758354597605,1.95086396,239.79,239.77,0.68]
[1758354598897,1.95086396,239.79,239.77,4.8506476]
[1758354599206,1.95086396,239.79,239.77,4.1706476]
[1758354599412,4.26961494,239.84,239.78,0.68]
[1758354599710,1.95086396,239.82,239.79,13.59559401]
[1758354599913,1.95086396,239.82,239.8,0.68]
[1758354600218,1.95086396,239.83,239.81,0.68]
[1758354601495,2.61086396,239.82,239.77,13.59559401]
[1758354601701,1.95086396,239.82,239.78,0.66]
[1758354602011,1.95086396,239.81,239.75,14.59854014]
[1758354602196,1.95086396,239.81,239.77,0.66]
[1758354602388,0.66,239.82,239.78,0.66]
[1758354602593,1.95086396,239.81,239.78,0.66]
[1758354603296,1.95086396,239.81,239.78,4.83046507]
[1758354604512,1.95086396,239.81,239.79,0.66]
[1758354605620,4.75701512,239.83,239.79,4.83029531]
[1758354605818,5.41701512,239.83,239.79,4.83029531]
[1758354606116,2.80615116,239.83,239.8,0.66]
[1758354606295,3.46615116,239.83,239.79,4.17029531]
[1758354606496,4.75701512,239.83,239.8,0.66]
[1758354607217,2.80615116,239.82,239.8,0.66]
[1758354607613,2.80615116,239.82,239.77,4.17066355]
[1758354607819,2.81026813,239.82,239.79,13.59559401]
[1758354608024,2.81026813,239.82,239.8,0.66]
[1758354609002,2.81026813,239.82,239.78,13.59559401]
[1758354609508,4.76113209,239.83,239.79,0.66]
[1758354609820,4.76113209,239.83,239.8,0.66]
[1758354610319,1.95086396,239.83,239.81,0.66]
[1758354610507,2.91026813,239.84,239.82,14.25559401]
[1758354612127,0.1,239.84,239.82,18.42534979]
[1758354612299,2.91074143,239.84,239.82,18.42534979]
[1758354613124,0.1,239.84,239.82,18.42534979]
[1758354613426,2.91079131,239.84,239.82,18.42534979]
[1758354614115,0.1,239.84,239.82,18.42534979]
[1758354614810,1.95086396,239.83,239.82,13.59559401]
[1758354619226,1.95086396,239.83,239.82,14.25559401]
[1758354623127,1.95086396,239.83,239.82,13.59559401]
[1758354623320,2.61086396,239.83,239.82,13.59559401]
[1758354624342,1.95086396,239.83,239.8,16.63425631]
[1758354624508,1.95086396,239.83,239.81,0.66]
[1758354624830,0.1,239.84,239.81,0.66]
[1758354625132,2.05086396,239.84,239.81,0.66]
[1758354626937,2.05086396,239.84,239.82,0.72]
[1758354629037,2.05086396,239.84,239.83,0.72]
[1758354629232,0.1,239.84,239.83,0.72]
[1758354630019,0.1,239.84,239.82,4.88964171]
[1758354630543,2.05086396,239.84,239.82,4.88964171]
[1758354630840,0.1,239.84,239.82,4.88964171]
[1758354631143,2.05086396,239.84,239.82,4.88964171]
[1758354631435,2.05086396,239.84,239.81,13.59559401]
[1758354631638,2.76086396,239.84,239.81,13.59559401]
[1758354631939,0.71,239.83,239.79,0.72]
[1758354632441,4.86127363,239.84,239.81,13.59559401]
[1758354632624,5.57127363,239.84,239.81,13.59559401]
[1758354632824,4.86127363,239.84,239.81,13.59559401]
[1758354633023,4.86127363,239.84,239.81,14.31559401]
[1758354633431,4.86127363,239.84,239.82,0.72]
[1758354633627,2.05086396,239.84,239.83,0.72]
[1758354633834,4.86127363,239.84,239.83,0.72]
[1758354634145,2.05086396,239.84,239.83,0.72]
[1758354634339,4.86127363,239.84,239.83,0.72]
[1758354634549,2.05086396,239.84,239.83,0.72]
[1758354634842,0.1,239.84,239.83,4.88962014]
[1758354635223,2.91040967,239.84,239.83,4.88962014]
[1758354635552,0.1,239.84,239.83,4.88962014]
[1758354635726,2.91040967,239.84,239.83,4.88962014]
[1758354635928,0.1,239.84,239.83,4.88962014]
[1758354636618,0.1,239.84,239.82,4.16979401]
[1758354636816,0.1,239.84,239.82,4.88979401]
[1758354637429,0.1,239.84,239.83,0.72]
[1758354639040,0.1,239.84,239.82,13.59559401]
[1758354639346,0.1,239.84,239.82,14.31559401]
[1758354640147,0.1,239.84,239.83,0.72]
[1758354641247,0.1,239.84,239.82,17.76530298]
[1758354641440,0.1,239.84,239.82,18.48530298]
[1758354642648,0.1,239.84,239.83,18.48521415]
[1758354642951,0.1,239.84,239.83,14.31559401]
[1758354644052,0.1,239.84,239.83,13.59559401]
[1758354644853,0.1,239.84,239.83,14.31559401]
[1758354650942,0.1,239.84,239.83,18.48521415]
[1758354659660,0.1,239.84,239.83,19.7328021]
[1758354662267,0.1,239.84,239.83,18.48521415]
[1758354670150,0.1,239.84,239.83,17.76521415]
[1758354672066,0.1,239.84,239.83,18.46521415]
[1758354673281,0.1,239.84,239.83,17.76521415]
[1758354673585,0.1,239.84,239.83,18.46521415]
[1758354675859,0.1,239.84,239.83,17.76521415]
[1758354676352,0.1,239.84,239.83,18.46521415]
[1758354677076,0.1,239.84,239.83,21.27802656]
[1758354681278,0.1,239.84,239.83,21.5623497]
[1758354682163,0.1,239.84,239.83,22.80993765]
[1758354684481,0.1,239.84,239.83,84.70993765]
[1758354688984,0.1,239.84,239.83,83.4623497]
[1758354689190,0.1,239.84,239.83,84.70993765]
[1758354692487,0.1,239.86,239.85,45.07991715]
[1758354692676,0.1,239.86,239.85,108.2275051]
[1758354692873,0.1,239.86,239.85,108.9175051]
[1758354693182,0.1,239.86,239.85,111.1175051]
[1758354693574,0.1,239.86,239.85,109.86991715]
[1758354693788,0.1,239.86,239.85,111.1175051]
[1758354694582,0.1,239.86,239.85,115.28677756]
[1758354696578,0.1,239.86,239.85,114.03918961]
[1758354696783,0.1,239.86,239.85,82.14918961]
[1758354696978,0.1,239.86,239.85,83.39677756]
[1758354697293,0.1,239.86,239.85,82.14918961]
[1758354697489,0.1,239.86,239.85,83.39677756]
[1758354699099,0.8,239.86,239.85,83.11245442]
[1758354699610,0.1,239.86,239.85,83.11245442]
[1758354699906,0.1,239.86,239.85,84.50289452]
[1758354701010,0.1,239.86,239.85,83.81289452]
[1758354702372,0.8,239.86,239.85,21.91289452]
[1758354702577,0.1,239.86,239.85,21.91289452]
[1758354703377,0.1,239.86,239.85,19.96486647]
[1758354703713,0.1,239.86,239.85,21.91289452]
[1758354705010,0.1,239.86,239.85,22.60289452]
[1758354706013,0.1,239.86,239.85,22.88721766]
[1758354707478,0.1,239.86,239.85,22.19721766]
[1758354708278,0.1,239.86,239.85,22.88721766]
[1758354708787,0.1,239.86,239.85,20.24918961]
[1758354708993,0.1,239.86,239.85,19.96486647]
[1758354709190,0.1,239.86,239.85,21.91289452]
[1758354709390,0.1,239.86,239.85,19.96486647]
[1758354709586,0.1,239.86,239.85,21.91289452]
[1758354709791,0.8,239.86,239.85,21.91289452]
[1758354710339,0.1,239.86,239.85,21.91289452]
[1758354710679,0.8,239.86,239.85,21.91289452]
[1758354711506,0.8,239.86,239.85,19.96486647]
[1758354711705,0.8,239.86,239.85,17.76486647]
[1758354713705,0.1,239.86,239.85,17.76486647]
[1758354716703,0.81,239.86,239.85,17.76486647]
[1758354717104,0.1,239.86,239.85,17.76486647]
[1758354722914,2.2,239.89,239.86,13.59559401]
[1758354723095,2.2,239.89,239.88,15.54362206]
[1758354723303,2.2,239.89,239.88,16.25362206]
[1758354723503,2.2,239.89,239.88,14.30559401]
[1758354723712,2.2,239.89,239.88,21.26541426]
[1758354724202,2.2,239.89,239.88,25.4341653]
[1758354725110,2.2,239.89,239.88,23.48613725]
[1758354725297,2.2,239.89,239.88,25.4341653]
[1758354725498,2.2,239.89,239.88,23.48613725]
[1758354725734,2.2,239.89,239.88,25.4341653]
[1758354727724,2.2,239.89,239.88,23.48613725]
[1758354727927,2.2,239.89,239.88,25.4341653]
[1758354735629,2.2,239.89,239.88,23.48613725]
[1758354735833,2.2,239.89,239.88,25.4341653]
[1758354738438,2.2,239.89,239.88,23.48613725]
[1758354738629,2.2,239.89,239.88,22.77613725]
[1758354738924,2.2,239.89,239.88,24.7241653]
[1758354739726,2.2,239.89,239.88,25.4341653]
[1758354742426,2.2,239.89,239.88,23.48613725]
[1758354742610,2.2,239.89,239.88,25.4341653]
[1758354748410,2.2,239.89,239.88,23.48613725]
[1758354748625,2.2,239.89,239.88,24.7241653]
[1758354750832,2.9,239.89,239.88,22.77613725]
[1758354751528,2.2,239.89,239.88,22.77613725]
[1758354755043,2.9,239.89,239.88,18.60738621]
[1758354755229,2.9,239.89,239.88,13.59559401]
[1758354755618,5.71048687,239.89,239.88,13.59559401]
[1758354755815,2.9,239.89,239.88,13.59559401]
[1758354756043,5.71048687,239.89,239.88,13.59559401]
[1758354756229,5.71048687,239.89,239.84,4.16944629]
[1758354756430,5.71048687,239.89,239.83,2.81048687]
[1758354756431,0.7,239.88,239.87,13.59559401]
[1758354761651,2.2,239.89,239.87,4.88885996]
[1758354763552,2.2,239.89,239.88,14.31559401]
[1758354765031,2.2,239.89,239.88,18.48434505]
[1758354778258,2.2,239.89,239.88,19.73124077]
[1758354781761,2.2,239.89,239.88,22.54199469]
[1758354781947,2.2,239.89,239.88,19.73124077]
[1758354782148,2.2,239.89,239.88,22.54199469]
[1758354782574,2.2,239.89,239.88,19.73124077]
[1758354785064,2.2,239.89,239.88,18.48434505]
[1758354785267,2.2,239.89,239.88,19.73124077]
[1758354786657,2.2,239.89,239.88,19.01124077]
[1758354788171,2.2,239.89,239.88,19.70124077]
[1758354790660,2.2,239.89,239.88,19.01124077]
[1758354791166,2.2,239.89,239.88,19.70124077]
[1758354792449,2.2,239.89,239.88,17.76434505]
[1758354795572,2.87,239.89,239.88,13.59559401]
[1758354795762,5.68228687,239.89,239.88,13.59559401]
[1758354796564,5.01228687,239.89,239.88,13.59559401]
[1758354796754,5.68228687,239.89,239.88,13.59559401]
[1758354801186,5.01228687,239.89,239.88,13.59559401]
[1758354806790,5.69228687,239.89,239.85,13.59559401]
[1758354807085,3.49228687,239.88,239.85,13.59559401]
[1758354807265,2.81228687,239.87,239.85,13.59559401]
[1758354807466,0.68,239.88,239.85,13.59559401]
[1758354807689,2.81175987,239.87,239.85,14.29559401]
[1758354807873,2.2,239.89,239.85,18.46480697]
[1758354808074,2.81176037,239.88,239.85,18.46480697]
[1758354808285,2.81176037,239.87,239.85,18.46480697]
[1758354808469,2.88,239.89,239.85,18.46480697]
[1758354808668,2.81153263,239.88,239.85,18.46480697]
[1758354808868,2.81153263,239.87,239.85,18.46480697]
[1758354809071,2.88,239.89,239.85,18.46480697]
[1758354809383,2.81153263,239.88,239.87,13.59559401]
[1758354809784,2.81153263,239.88,239.87,14.29559401]
[1758354811302,2.81153263,239.88,239.87,18.46451884]
[1758354812163,2.81153263,239.88,239.87,13.59559401]
[1758354812583,2.81153263,239.88,239.85,0.7]
[1758354812885,2.81090894,239.88,239.87,13.59559401]
[1758354813186,3.49090894,239.88,239.84,13.59559401]
[1758354813388,3.49090894,239.87,239.84,13.59559401]
[1758354813688,0.68,239.87,239.84,14.29559401]
[1758354813884,0.68,239.88,239.84,14.29559401]
[1758354814198,2.81055612,239.87,239.84,14.29559401]
[1758354814492,0.68,239.87,239.84,14.29559401]
[1758354814678,10.42642088,239.89,239.84,14.29559401]
[1758354814880,3.49030066,239.88,239.84,14.29559401]
[1758354815190,2.81030066,239.87,239.84,14.29559401]
[1758354815420,0.68,239.88,239.84,14.29559401]
[1758354815574,2.81001117,239.87,239.84,14.29559401]
[1758354815777,0.68,239.88,239.84,14.29559401]
[1758354815975,2.81001153,239.87,239.84,14.29559401]
[1758354816276,0.68,239.88,239.84,14.29559401]
[1758354816475,2.80981636,239.87,239.84,18.46494455]
[1758354816677,0.68,239.88,239.84,18.46494455]
[1758354816982,2.80981631,239.87,239.84,18.46494455]
[1758354817294,2.80964724,239.87,239.84,18.46494455]
[1758354818098,2.80964724,239.87,239.85,4.86926756]
[1758354819584,2.80964724,239.87,239.86,0.7]
[1758354819788,2.80964724,239.88,239.86,0.7]
[1758354819991,2.80964724,239.87,239.86,0.7]
[1758354820202,2.80964724,239.88,239.86,0.7]
[1758354820412,2.80964724,239.87,239.86,0.7]
[1758354820700,2.80964724,239.88,239.86,0.7]
[1758354820905,2.80964724,239.87,239.86,4.16901982]
[1758354821109,2.2,239.89,239.86,4.16901982]
[1758354821110,2.80964724,239.88,239.86,4.16901982]
[1758354821269,2.80964724,239.87,239.86,4.16901982]
[1758354821473,2.80964724,239.88,239.86,4.86901982]
[1758354821696,2.80964724,239.87,239.86,4.16901982]
[1758354821904,2.80964724,239.88,239.85,4.16927246]
[1758354822094,2.80964724,239.87,239.85,4.16927246]
[1758354822286,2.80964724,239.88,239.86,0.7]
[1758354822582,2.80964724,239.87,239.85,4.16927246]
[1758354822784,2.80964724,239.88,239.85,4.16927246]
[1758354822976,2.80964724,239.87,239.86,4.86909864]
[1758354823177,2.80964724,239.88,239.86,4.86909864]
[1758354823396,2.80964724,239.87,239.86,4.16909864]
[1758354823597,2.80964724,239.88,239.86,4.16909864]
[1758354823800,2.80964724,239.87,239.86,4.16909864]
[1758354823979,2.80964724,239.88,239.86,4.16909864]
[1758354824176,2.80964724,239.87,239.86,4.16909864]
[1758354824374,2.80964724,239.88,239.86,4.86909864]
[1758354824572,2.80964724,239.87,239.85,4.16927246]
[1758354824774,2.80964724,239.88,239.85,4.86927246]
[1758354824994,2.80964724,239.87,239.85,4.86927246]
[1758354825277,2.80964724,239.88,239.85,4.86927246]
[1758354825577,2.80964724,239.87,239.85,4.86927246]
[1758354825777,2.80964724,239.88,239.85,4.86927246]
[1758354825977,2.80964724,239.87,239.85,4.86927246]
[1758354826277,2.80964724,239.88,239.85,4.86927246]
[1758354826571,2.80964724,239.87,239.85,4.86927246]
[1758354826780,2.80964724,239.88,239.85,4.86927246]
[1758354826977,2.80964724,239.87,239.85,4.86927246]
[1758354827178,2.80964724,239.88,239.85,4.86927246]
[1758354827488,2.80964724,239.87,239.85,4.16927246]
[1758354827694,0.68,239.87,239.85,4.16927246]
[1758354827915,3.48964724,239.87,239.85,4.16927246]
[1758354828088,2.80964724,239.88,239.85,4.16927246]
[1758354828282,2.80964724,239.87,239.86,0.7]
[1758354828510,2.80964724,239.88,239.86,0.7]
[1758354828697,2.80964724,239.87,239.86,0.7]
[1758354828899,2.80964724,239.88,239.87,13.59559401]
[1758354829118,2.80964724,239.88,239.87,14.29559401]
[1758354829807,2.80964724,239.88,239.87,18.46451884]
[1758354833989,5.43830477,239.88,239.86,13.59559401]
[1758354834196,2.80964724,239.87,239.86,13.59559401]
[1758354834403,2.80964724,239.87,239.85,13.59559401]
[1758354834608,1.94865753,239.88,239.85,14.29559401]
[1758354834803,2.81037102,239.87,239.85,14.29559401]
[1758354835003,1.94865753,239.88,239.85,14.29559401]
[1758354835226,2.81037102,239.87,239.85,18.46482572]
[1758354835530,1.94865753,239.88,239.85,18.46482572]
[1758354835736,2.81072054,239.87,239.85,18.46482572]
[1758354835924,1.94865753,239.88,239.85,18.46482572]
[1758354836125,2.81072018,239.87,239.85,18.46482572]
[1758354836426,1.94865753,239.88,239.85,18.46482572]
[1758354836731,2.81101622,239.87,239.85,18.46482572]
[1758354836912,1.94865753,239.88,239.85,14.29559401]
[1758354837097,2.81101622,239.87,239.85,14.29559401]
[1758354837303,1.94865753,239.88,239.85,14.29559401]
[1758354837519,2.81135329,239.87,239.85,14.29559401]
[1758354837823,1.94865753,239.88,239.85,14.29559401]
[1758354838020,2.81135329,239.87,239.85,14.29559401]
[1758354838343,1.94865753,239.88,239.85,14.29559401]
[1758354838506,2.8117424,239.87,239.85,14.29559401]
[1758354838825,1.94865753,239.88,239.85,14.29559401]
[1758354839129,2.8117424,239.87,239.85,14.29559401]
[1758354839299,1.94865753,239.88,239.85,14.29559401]
[1758354839502,2.81219984,239.87,239.85,14.29559401]
[1758354839703,6.95830477,239.89,239.85,14.29559401]
[1758354839904,2.81220035,239.88,239.85,14.29559401]
[1758354840204,2.81220035,239.87,239.85,14.29559401]
[1758354840443,2.81220035,239.86,239.85,14.29559401]
[1758354840605,2.81272365,239.86,239.85,18.46484449]
[1758354850631,2.81272365,239.86,239.85,21.27756814]
[1758354855348,2.2,239.89,239.85,21.27756814]
[1758354855644,2.81460735,239.88,239.87,17.76451884]
[1758354855944,2.81460735,239.88,239.87,18.45451884]
[1758354863334,2.2,239.89,239.87,18.45451884]
[1758354867554,2.81191645,239.88,239.87,19.99749951]
[1758354867959,2.81191645,239.88,239.87,20.71749951]
[1758354868144,2.81191645,239.88,239.87,24.23340407]
[1758354869256,2.2,239.89,239.87,24.23340407]
[1758354869556,2.2,239.89,239.88,18.48434505]
[1758354869936,2.2,239.89,239.88,21.2962615]
[1758354872679,0.1,239.98,239.89,13.87991715]
[1758354872852,2.81041136,239.97,239.95,1.94865753]
[1758354873058,2.81041136,239.96,239.95,15.54425154]
[1758354873367,3.49041136,239.96,239.95,13.59559401]
[1758354873868,3.49041136,239.96,239.95,16.40600537]
[1758354875347,0.68,239.96,239.95,16.40600537]
[1758354875553,3.49041136,239.96,239.95,16.40600537]
[1758354875869,0.68,239.96,239.95,16.40600537]
[1758354876065,3.49041136,239.96,239.95,16.40600537]
[1758354876268,0.68,239.96,239.95,16.40600537]
[1758354876467,3.49041136,239.96,239.95,16.40600537]
[1758354876667,0.68,239.96,239.95,16.40600537]
[1758354876974,3.49041136,239.96,239.95,16.40600537]
[1758354877267,0.68,239.96,239.95,16.40600537]
[1758354877467,3.49041136,239.96,239.95,16.40600537]
[1758354877676,0.68,239.96,239.95,16.40600537]
[1758354877857,2.81041136,239.96,239.95,16.40600537]
[1758354878175,3.49041136,239.97,239.95,16.40600537]
[1758354878671,3.49041136,239.97,239.95,13.59559401]
[1758354878869,3.49041136,239.97,239.96,3.49041136]
[1758354879574,0.68,239.97,239.96,3.49041136]
[1758354880867,2.91041136,239.98,239.96,3.49041136]
[1758354881066,3.59041136,239.98,239.96,3.49041136]
[1758354881870,5.43906889,239.97,239.9,15.54425154]
[1758354882071,3.49041136,239.96,239.93,4.16668951]
[1758354882569,0.68,239.95,239.93,4.16668951]
[1758354883271,2.81041136,239.97,239.94,14.31559401]
[1758354883475,2.81041136,239.97,239.95,0.72]
[1758354884082,2.81041136,239.97,239.95,3.53041136]
[1758354885380,2.81041136,239.97,239.95,2.81041136]
[1758354886588,3.49041136,239.97,239.95,2.81041136]
[1758354886878,2.81041136,239.97,239.95,2.81041136]
[1758354887380,3.49041136,239.97,239.95,2.81041136]
[1758354887767,2.81041136,239.97,239.95,2.81041136]
[1758354888076,0.68,239.96,239.95,16.40600537]
[1758354888581,2.81041136,239.97,239.95,16.40600537]
[1758354888783,3.49041136,239.97,239.95,16.40600537]
[1758354891292,2.81041136,239.97,239.95,16.40600537]
[1758354892191,4.2670628,239.98,239.95,13.59559401]
[1758354892192,2.81041136,239.96,239.95,13.59559401]
[1758354892398,2.81041136,239.97,239.95,13.59559401]
[1758354892607,2.81041136,239.96,239.95,13.59559401]
[1758354892912,2.81041136,239.97,239.95,13.59559401]
[1758354893072,2.81041136,239.96,239.95,13.59559401]
[1758354893274,2.81041136,239.97,239.95,13.59559401]
[1758354893490,2.81041136,239.96,239.95,13.59559401]
[1758354893687,2.81041136,239.97,239.95,13.59559401]
[1758354893990,2.81041136,239.96,239.95,13.59559401]
[1758354894178,2.81041136,239.97,239.95,14.31559401]
[1758354894385,2.81041136,239.96,239.95,14.31559401]
[1758354894573,2.81041136,239.97,239.95,14.31559401]
[1758354894773,2.81041136,239.96,239.95,14.31559401]
[1758354894972,2.81041136,239.97,239.95,14.31559401]
[1758354895174,2.81041136,239.96,239.95,14.31559401]
[1758354895374,2.81041136,239.97,239.95,14.31559401]
[1758354895573,2.81041136,239.96,239.95,14.31559401]
[1758354895798,2.81041136,239.97,239.95,14.31559401]
[1758354895976,2.81041136,239.96,239.95,14.31559401]
[1758354896177,2.81041136,239.97,239.95,14.31559401]
[1758354896377,2.81041136,239.96,239.95,14.31559401]
[1758354896676,2.81041136,239.97,239.95,14.31559401]
[1758354896892,2.81041136,239.96,239.95,14.31559401]
[1758354897195,2.81041136,239.97,239.95,14.30559401]
[1758354897398,2.81041136,239.96,239.95,14.30559401]
[1758354897584,0.69,239.96,239.93,6.19296284]
[1758354897894,2.81041136,239.96,239.93,0.71]
[1758354898075,2.81041136,239.97,239.93,0.71]
[1758354898279,2.81041136,239.96,239.93,0.71]
[1758354898476,2.81041136,239.95,239.93,0.71]
[1758354898676,2.81041136,239.96,239.93,0.71]
[1758354898892,2.81041136,239.95,239.93,0.71]
[1758354899194,2.81041136,239.96,239.93,0.71]
[1758354899395,2.81041136,239.95,239.93,0.71]
[1758354899583,2.81041136,239.96,239.93,0.71]
[1758354899784,2.81041136,239.95,239.93,0.71]
[1758354900098,2.81041136,239.96,239.94,0.71]
[1758354900277,2.81041136,239.95,239.93,13.59559401]
[1758354900483,2.81041136,239.96,239.93,13.59559401]
[1758354900693,2.81041136,239.95,239.93,13.59559401]
[1758354900878,2.81041136,239.96,239.93,14.30559401]